[Event "*** Titled Tuesday Blitz"]
[Site "Chess.com"]
[Date "2020.11.10"]
[Round "2"]
[White "Lenyas66"]
[Black "garicradomir"]
[Result "1-0"]
[WhiteElo "2476"]
[BlackElo "2286"]
[TimeControl "180+1"]
[EndTime "10:19:51 PST"]
[Termination "Lenyas66 won by resignation"]

1. d4 {[%clk 0:03:00.9]} 1... Nf6 {[%clk 0:02:58.9]} 2. Bg5 {[%clk 0:03:00.9]}
2... Ne4 {[%clk 0:02:57.7]} 3. Bf4 {[%clk 0:03:00.4]} 3... c5 {[%clk 0:02:57.8]}
4. f3 {[%clk 0:02:57.7]} 4... Nf6 {[%clk 0:02:58]} 5. d5 {[%clk 0:02:57.5]} 5...
Nh5 {[%clk 0:02:52.5]} 6. Bd2 {[%clk 0:02:49]} 6... e5 {[%clk 0:02:52.3]} 7. Nh3
{[%clk 0:02:41.1]} 7... d6 {[%clk 0:02:49.5]} 8. Nf2 {[%clk 0:02:40.8]} 8... f5
{[%clk 0:02:49]} 9. e4 {[%clk 0:02:40]} 9... Nf6 {[%clk 0:02:46.5]} 10. Bb5+
{[%clk 0:02:38.4]} 10... Kf7 {[%clk 0:02:40.4]} 11. a4 {[%clk 0:02:28.3]} 11...
Be7 {[%clk 0:02:39.4]} 12. Nc3 {[%clk 0:02:26.2]} 12... Rf8 {[%clk 0:02:37.1]}
13. Bd3 {[%clk 0:02:26]} 13... f4 {[%clk 0:02:31.8]} 14. g3 {[%clk 0:02:19.2]}
14... Nh5 {[%clk 0:02:25.6]} 15. Ne2 {[%clk 0:02:18.8]} 15... Bg5 {[%clk
0:02:20.3]} 16. g4 {[%clk 0:02:16.4]} 16... Nf6 {[%clk 0:02:14.7]} 17. h4 {[%clk
0:02:14.9]} 17... Bxh4 {[%clk 0:02:13.7]} 18. Rxh4 {[%clk 0:02:12]} 18... Nxd5
{[%clk 0:02:10.5]} 19. Rxh7 {[%clk 0:02:06.5]} 19... Nf6 {[%clk 0:02:05.8]} 20.
Rh1 {[%clk 0:02:00.1]} 20... Be6 {[%clk 0:02:03.8]} 21. Nc3 {[%clk 0:01:42]}
21... Nc6 {[%clk 0:02:00.4]} 22. b3 {[%clk 0:01:20.1]} 22... Nd4 {[%clk
0:01:56.6]} 23. Nb5 {[%clk 0:01:17.2]} 23... Rc8 {[%clk 0:01:51.3]} 24. Nxd4
{[%clk 0:01:16.3]} 24... cxd4 {[%clk 0:01:51.1]} 25. Qe2 {[%clk 0:01:11.1]}
25... Nd7 {[%clk 0:01:48.7]} 26. Bb4 {[%clk 0:01:05.8]} 26... Nc5 {[%clk
0:01:44.9]} 27. Bxc5 {[%clk 0:01:04.1]} 27... Rxc5 {[%clk 0:01:44.3]} 28. Kf1
{[%clk 0:01:03.6]} 28... Qa5 {[%clk 0:01:37.2]} 29. Kg2 {[%clk 0:01:02.8]} 29...
Rfc8 {[%clk 0:01:37]} 30. Rad1 {[%clk 0:00:53.8]} 30... Qc3 {[%clk 0:01:35.4]}
31. Nh3 {[%clk 0:00:51.5]} 31... Kg8 {[%clk 0:01:32.8]} 32. Ng5 {[%clk
0:00:49.5]} 32... Bd7 {[%clk 0:01:26.4]} 33. Qf2 {[%clk 0:00:49]} 33... Qb2
{[%clk 0:01:19]} 34. Rd2 {[%clk 0:00:48.6]} 34... Qc3 {[%clk 0:01:01]} 35. Re2
{[%clk 0:00:48.1]} 35... Kf8 {[%clk 0:00:43.9]} 36. Qh4 {[%clk 0:00:48.1]} 36...
Ke7 {[%clk 0:00:41.4]} 37. Qh7 {[%clk 0:00:42.7]} 37... Kd8 {[%clk 0:00:41.2]}
38. Qxg7 {[%clk 0:00:40.9]} 38... Kc7 {[%clk 0:00:40.6]} 39. Ne6+ {[%clk
0:00:38.7]} 39... Kc6 {[%clk 0:00:40.7]} 40. Nxc5 {[%clk 0:00:38.3]} 40... Qxc5
{[%clk 0:00:40.6]} 41. Rh7 {[%clk 0:00:34.4]} 41... Rc7 {[%clk 0:00:31.7]} 42.
Qg8 {[%clk 0:00:32.6]} 42... Kb6 {[%clk 0:00:27.1]} 43. Qd5 {[%clk 0:00:30.9]}
43... Qc3 {[%clk 0:00:23.9]} 44. Qxd6+ {[%clk 0:00:28.6]} 1-0

[Event "*** Titled Tuesday Blitz"]
[Site "Chess.com"]
[Date "2020.11.10"]
[Round "2"]
[White "swisspower96"]
[Black "Chopper1905"]
[Result "0-1"]
[WhiteElo "2582"]
[BlackElo "2932"]
[TimeControl "180+1"]
[EndTime "10:19:53 PST"]
[Termination "Chopper1905 won by resignation"]

1. d4 {[%clk 0:03:00.7]} 1... d5 {[%clk 0:02:59.2]} 2. c4 {[%clk 0:03:00.5]}
2... c6 {[%clk 0:02:59.5]} 3. cxd5 {[%clk 0:02:59.5]} 3... cxd5 {[%clk
0:02:59.4]} 4. Bf4 {[%clk 0:02:59.3]} 4... Nc6 {[%clk 0:02:57.6]} 5. e3 {[%clk
0:02:59.5]} 5... e6 {[%clk 0:02:52]} 6. Nc3 {[%clk 0:02:55.1]} 6... Bd6 {[%clk
0:02:50.7]} 7. Bxd6 {[%clk 0:02:54.6]} 7... Qxd6 {[%clk 0:02:51.6]} 8. f4 {[%clk
0:02:53.9]} 8... Nge7 {[%clk 0:02:50.6]} 9. Nf3 {[%clk 0:02:54]} 9... O-O {[%clk
0:02:50.9]} 10. Bd3 {[%clk 0:02:54]} 10... f6 {[%clk 0:02:43.2]} 11. O-O {[%clk
0:01:59.8]} 11... b6 {[%clk 0:02:39]} 12. a3 {[%clk 0:01:57.8]} 12... Bb7 {[%clk
0:02:38.4]} 13. Qc2 {[%clk 0:01:57.4]} 13... h6 {[%clk 0:02:31.3]} 14. Rae1
{[%clk 0:01:56.4]} 14... Rac8 {[%clk 0:02:30.5]} 15. Qf2 {[%clk 0:01:51.3]}
15... Na5 {[%clk 0:02:16.2]} 16. Qg3 {[%clk 0:01:40]} 16... Nc4 {[%clk
0:02:12.7]} 17. Rf2 {[%clk 0:01:34.3]} 17... Nxa3 {[%clk 0:02:02.8]} 18. e4
{[%clk 0:01:28.4]} 18... Nc4 {[%clk 0:01:47.2]} 19. e5 {[%clk 0:01:26]} 19...
Qd8 {[%clk 0:01:44.8]} 20. Nb5 {[%clk 0:01:17.4]} 20... fxe5 {[%clk 0:01:34.5]}
21. fxe5 {[%clk 0:01:06.1]} 21... Nf5 {[%clk 0:01:34.6]} 22. Bxf5 {[%clk
0:00:59.2]} 22... Rxf5 {[%clk 0:01:35.5]} 23. b3 {[%clk 0:00:59.8]} 23... a6
{[%clk 0:01:34.7]} 24. bxc4 {[%clk 0:00:27.4]} 24... axb5 {[%clk 0:01:34.5]} 25.
cxb5 {[%clk 0:00:27]} 25... Qe8 {[%clk 0:01:31.7]} 26. Qh3 {[%clk 0:00:26]}
26... Rc3 {[%clk 0:01:24.6]} 27. Qg4 {[%clk 0:00:19.4]} 27... Qxb5 {[%clk
0:01:12.8]} 28. Nh4 {[%clk 0:00:16.6]} 28... Rxf2 {[%clk 0:01:12.3]} 29. Kxf2
{[%clk 0:00:15.2]} 29... Qe8 {[%clk 0:01:05.5]} 30. Kg1 {[%clk 0:00:14.8]} 30...
Ba6 {[%clk 0:01:00.4]} 31. Ng6 {[%clk 0:00:14.5]} 31... Bd3 {[%clk 0:00:59.5]}
32. Nf4 {[%clk 0:00:14.6]} 32... Bf5 {[%clk 0:00:59.8]} 33. Qd1 {[%clk
0:00:13.9]} 33... Qc6 {[%clk 0:00:53.5]} 34. Qa1 {[%clk 0:00:09.6]} 34... Kh7
{[%clk 0:00:50.1]} 35. Nh5 {[%clk 0:00:09.7]} 35... Rc2 {[%clk 0:00:45.8]} 36.
Qa7 {[%clk 0:00:07.7]} 36... Qc7 {[%clk 0:00:46.1]} 37. Qa8 {[%clk 0:00:07.3]}
37... Qc3 {[%clk 0:00:45.3]} 38. Rf1 {[%clk 0:00:04.4]} 38... Qxd4+ {[%clk
0:00:43.4]} 39. Kh1 {[%clk 0:00:04.3]} 39... Qf2 {[%clk 0:00:43]} 40. Nf6+
{[%clk 0:00:03.2]} 40... gxf6 {[%clk 0:00:42.7]} 41. Qb7+ {[%clk 0:00:03.1]}
41... Kg6 {[%clk 0:00:43.2]} 0-1

[Event "*** Titled Tuesday Blitz"]
[Site "Chess.com"]
[Date "2020.11.10"]
[Round "2"]
[White "tteshan"]
[Black "PattyCastillo"]
[Result "1-0"]
[WhiteElo "2360"]
[BlackElo "1962"]
[TimeControl "180+1"]
[EndTime "10:19:54 PST"]
[Termination "tteshan won by resignation"]

1. e4 {[%clk 0:03:00.9]} 1... c5 {[%clk 0:02:56.7]} 2. c3 {[%clk 0:03:00.3]}
2... d6 {[%clk 0:02:54]} 3. d4 {[%clk 0:02:59.1]} 3... cxd4 {[%clk 0:02:53.9]}
4. cxd4 {[%clk 0:02:59.1]} 4... Nf6 {[%clk 0:02:54.4]} 5. Nc3 {[%clk 0:02:58.5]}
5... e6 {[%clk 0:02:51.6]} 6. Nf3 {[%clk 0:02:55.4]} 6... Be7 {[%clk 0:02:51.6]}
7. Bd3 {[%clk 0:02:53]} 7... Nc6 {[%clk 0:02:50.6]} 8. a3 {[%clk 0:02:51.5]}
8... O-O {[%clk 0:02:50]} 9. O-O {[%clk 0:02:51]} 9... b6 {[%clk 0:02:46.5]} 10.
e5 {[%clk 0:02:45.3]} 10... dxe5 {[%clk 0:02:45.4]} 11. dxe5 {[%clk 0:02:45.7]}
11... Nd5 {[%clk 0:02:43]} 12. Nxd5 {[%clk 0:02:37.6]} 12... Qxd5 {[%clk
0:02:37.9]} 13. Qe2 {[%clk 0:02:37.7]} 13... Bb7 {[%clk 0:02:29.1]} 14. Rd1
{[%clk 0:02:35.6]} 14... Qc5 {[%clk 0:01:48.3]} 15. Qe4 {[%clk 0:02:23.7]} 15...
g6 {[%clk 0:01:44.1]} 16. Be3 {[%clk 0:02:17.9]} 16... Qa5 {[%clk 0:01:37.9]}
17. b4 {[%clk 0:02:11.5]} 17... Qa4 {[%clk 0:01:23.5]} 18. Bc2 {[%clk 0:01:20]}
18... Qa6 {[%clk 0:01:14.8]} 19. Qg4 {[%clk 0:01:08.3]} 19... Rad8 {[%clk
0:00:57.6]} 20. Ng5 {[%clk 0:00:58.7]} 20... Nxe5 {[%clk 0:00:47.1]} 21. Qh4
{[%clk 0:00:38.7]} 21... Bxg5 {[%clk 0:00:42.6]} 22. Bxg5 {[%clk 0:00:39.1]}
22... Rxd1+ {[%clk 0:00:38.4]} 23. Rxd1 {[%clk 0:00:40]} 23... Qc4 {[%clk
0:00:36.1]} 24. Qxc4 {[%clk 0:00:21.2]} 24... Nxc4 {[%clk 0:00:35.5]} 25. a4
{[%clk 0:00:19.9]} 25... Bd5 {[%clk 0:00:28.6]} 26. f3 {[%clk 0:00:17.6]} 26...
Nb2 {[%clk 0:00:25.6]} 27. Rd2 {[%clk 0:00:15.7]} 27... Nc4 {[%clk 0:00:25.3]}
28. Rd4 {[%clk 0:00:15]} 28... f6 {[%clk 0:00:22.6]} 29. Bh6 {[%clk 0:00:14.5]}
29... Rc8 {[%clk 0:00:21.6]} 30. Bb3 {[%clk 0:00:14.6]} 30... Ne5 {[%clk
0:00:14.6]} 31. Bxd5 {[%clk 0:00:13.7]} 31... exd5 {[%clk 0:00:14.5]} 32. Rxd5
{[%clk 0:00:14.1]} 32... Rc1+ {[%clk 0:00:11.5]} 33. Bxc1 {[%clk 0:00:13.7]} 1-0

[Event "*** Titled Tuesday Blitz"]
[Site "Chess.com"]
[Date "2020.11.10"]
[Round "2"]
[White "GelmanAlexander"]
[Black "Bigfish1995"]
[Result "0-1"]
[WhiteElo "2595"]
[BlackElo "2973"]
[TimeControl "180+1"]
[EndTime "10:19:55 PST"]
[Termination "Bigfish1995 won on time"]

1. d4 {[%clk 0:03:00.9]} 1... Nf6 {[%clk 0:02:57.2]} 2. Nc3 {[%clk 0:03:01]}
2... d5 {[%clk 0:02:55.3]} 3. Bf4 {[%clk 0:03:01]} 3... a6 {[%clk 0:02:55.1]} 4.
e3 {[%clk 0:02:59.7]} 4... Bf5 {[%clk 0:02:54.7]} 5. f3 {[%clk 0:02:54.3]} 5...
e6 {[%clk 0:02:53]} 6. g4 {[%clk 0:02:54.6]} 6... Bg6 {[%clk 0:02:52.9]} 7. h4
{[%clk 0:02:55.2]} 7... h5 {[%clk 0:02:48.8]} 8. g5 {[%clk 0:02:54.5]} 8... Nfd7
{[%clk 0:02:44.9]} 9. e4 {[%clk 0:02:52.6]} 9... Bb4 {[%clk 0:02:32.9]} 10. exd5
{[%clk 0:02:52.8]} 10... exd5 {[%clk 0:02:22.6]} 11. Qe2+ {[%clk 0:02:51.6]}
11... Kf8 {[%clk 0:02:16]} 12. Qh2 {[%clk 0:02:39.5]} 12... c5 {[%clk
0:02:08.3]} 13. Ne2 {[%clk 0:02:20.7]} 13... Nc6 {[%clk 0:02:06.2]} 14. Bc7
{[%clk 0:02:14.8]} 14... Qe8 {[%clk 0:02:01.5]} 15. O-O-O {[%clk 0:02:04.9]}
15... Qe3+ {[%clk 0:01:01.4]} 16. Kb1 {[%clk 0:02:04.6]} 16... Qxf3 {[%clk
0:01:01.2]} 17. Bh3 {[%clk 0:01:21.9]} 17... Bxc3 {[%clk 0:00:36.1]} 18. Nxc3
{[%clk 0:01:09.5]} 18... Nxd4 {[%clk 0:00:35.9]} 19. Bxd7 {[%clk 0:00:48.3]}
19... Bxc2+ {[%clk 0:00:34.1]} 20. Ka1 {[%clk 0:00:44.6]} 20... Bxd1 {[%clk
0:00:33.7]} 21. Rxd1 {[%clk 0:00:43.8]} 21... Kg8 {[%clk 0:00:30]} 22. Bb6
{[%clk 0:00:27]} 22... Nb5 {[%clk 0:00:19.8]} 23. Bxb5 {[%clk 0:00:19.4]} 23...
axb5 {[%clk 0:00:20.2]} 24. Bxc5 {[%clk 0:00:20.1]} 24... Rc8 {[%clk 0:00:20.3]}
25. Bd4 {[%clk 0:00:18.8]} 25... Rxc3 {[%clk 0:00:18.2]} 26. Re1 {[%clk
0:00:13.3]} 26... Rd3 {[%clk 0:00:18.5]} 27. Qc2 {[%clk 0:00:06.8]} 27... Kh7
{[%clk 0:00:13.2]} 28. Be3 {[%clk 0:00:01.7]} 28... Qe4 {[%clk 0:00:12.8]} 0-1

[Event "*** Titled Tuesday Blitz"]
[Site "Chess.com"]
[Date "2020.11.10"]
[Round "2"]
[White "Roman_Ovetchkin"]
[Black "RaunakSadhwani2005"]
[Result "0-1"]
[WhiteElo "2602"]
[BlackElo "2989"]
[TimeControl "180+1"]
[EndTime "10:19:56 PST"]
[Termination "RaunakSadhwani2005 won on time"]

1. d4 {[%clk 0:03:00.9]} 1... Nf6 {[%clk 0:02:53.8]} 2. c4 {[%clk 0:02:58.3]}
2... g6 {[%clk 0:02:53.8]} 3. Nc3 {[%clk 0:02:50.3]} 3... Bg7 {[%clk 0:02:54.1]}
4. e4 {[%clk 0:02:46.2]} 4... d6 {[%clk 0:02:54.3]} 5. h3 {[%clk 0:02:38.3]}
5... O-O {[%clk 0:02:54.5]} 6. Nf3 {[%clk 0:02:37.2]} 6... e5 {[%clk 0:02:52.1]}
7. d5 {[%clk 0:02:37.3]} 7... Nh5 {[%clk 0:02:49.3]} 8. g3 {[%clk 0:02:36.9]}
8... Na6 {[%clk 0:02:47.8]} 9. Nh2 {[%clk 0:02:29.7]} 9... Qe8 {[%clk 0:02:25]}
10. Be2 {[%clk 0:02:25.6]} 10... Nf6 {[%clk 0:02:18.9]} 11. g4 {[%clk
0:01:50.4]} 11... Nc5 {[%clk 0:02:14.6]} 12. Bf3 {[%clk 0:01:50.4]} 12... a5
{[%clk 0:02:07.5]} 13. Nf1 {[%clk 0:01:47.3]} 13... c6 {[%clk 0:01:51.7]} 14. g5
{[%clk 0:01:21.6]} 14... Nfd7 {[%clk 0:01:48.6]} 15. Ng3 {[%clk 0:00:49.4]}
15... cxd5 {[%clk 0:01:26.6]} 16. cxd5 {[%clk 0:00:47.1]} 16... f5 {[%clk
0:01:07.9]} 17. h4 {[%clk 0:00:22.1]} 17... f4 {[%clk 0:00:48.5]} 18. Nge2
{[%clk 0:00:15.4]} 18... b6 {[%clk 0:00:49]} 19. Nb5 {[%clk 0:00:13.5]} 19...
Qe7 {[%clk 0:00:42.3]} 20. a4 {[%clk 0:00:13.5]} 20... Nb8 {[%clk 0:00:26.8]}
21. Nec3 {[%clk 0:00:10.7]} 21... Nba6 {[%clk 0:00:26.1]} 22. Kf1 {[%clk
0:00:08.6]} 22... Nb4 {[%clk 0:00:26]} 23. Kg2 {[%clk 0:00:08.5]} 23... Rf7
{[%clk 0:00:21.8]} 24. Bd2 {[%clk 0:00:08.7]} 24... h6 {[%clk 0:00:18.8]} 25.
gxh6 {[%clk 0:00:06]} 25... Bxh6 {[%clk 0:00:19.7]} 26. Kf1 {[%clk 0:00:05.4]}
26... Nbd3 {[%clk 0:00:15.7]} 27. Rb1 {[%clk 0:00:03.7]} 27... Rh7 {[%clk
0:00:11.3]} 0-1

[Event "*** Titled Tuesday Blitz"]
[Site "Chess.com"]
[Date "2020.11.10"]
[Round "2"]
[White "Ranindu2003"]
[Black "Onischuk_V"]
[Result "0-1"]
[WhiteElo "2563"]
[BlackElo "2878"]
[TimeControl "180+1"]
[EndTime "10:19:57 PST"]
[Termination "Onischuk_V won on time"]

1. e4 {[%clk 0:02:59.6]} 1... d6 {[%clk 0:02:58.8]} 2. d4 {[%clk 0:02:59.2]}
2... Nf6 {[%clk 0:02:59.4]} 3. Nc3 {[%clk 0:02:59.3]} 3... g6 {[%clk 0:03:00]}
4. f3 {[%clk 0:02:58.5]} 4... Bg7 {[%clk 0:02:59.9]} 5. Be3 {[%clk 0:02:59.1]}
5... c6 {[%clk 0:03:00.2]} 6. Qd2 {[%clk 0:02:59.1]} 6... h6 {[%clk 0:03:00.4]}
7. O-O-O {[%clk 0:02:58.9]} 7... b5 {[%clk 0:02:59.6]} 8. Kb1 {[%clk 0:02:59]}
8... b4 {[%clk 0:02:56.1]} 9. Nce2 {[%clk 0:02:58.6]} 9... a5 {[%clk 0:02:55]}
10. g4 {[%clk 0:02:57.6]} 10... Nbd7 {[%clk 0:02:47.5]} 11. Nc1 {[%clk
0:02:47.6]} 11... Nb6 {[%clk 0:02:47.1]} 12. h4 {[%clk 0:02:47.5]} 12... Be6
{[%clk 0:02:34.2]} 13. Nh3 {[%clk 0:02:40.9]} 13... Nc4 {[%clk 0:02:16]} 14.
Bxc4 {[%clk 0:02:38.7]} 14... Bxc4 {[%clk 0:02:16.6]} 15. g5 {[%clk 0:02:27.3]}
15... hxg5 {[%clk 0:02:16.1]} 16. hxg5 {[%clk 0:02:19]} 16... Nh5 {[%clk
0:02:15.4]} 17. Qf2 {[%clk 0:02:07.9]} 17... a4 {[%clk 0:02:10.1]} 18. f4 {[%clk
0:02:02.3]} 18... d5 {[%clk 0:01:48.9]} 19. f5 {[%clk 0:01:45.8]} 19... dxe4
{[%clk 0:01:48.2]} 20. fxg6 {[%clk 0:01:45.8]} 20... fxg6 {[%clk 0:01:48.3]} 21.
Nf4 {[%clk 0:01:37.9]} 21... Rf8 {[%clk 0:01:46.4]} 22. Qd2 {[%clk 0:01:21.4]}
22... Nxf4 {[%clk 0:01:42.7]} 23. Bxf4 {[%clk 0:01:21.9]} 23... b3 {[%clk
0:01:31.6]} 24. cxb3 {[%clk 0:01:03.8]} 24... axb3 {[%clk 0:01:31.3]} 25. axb3
{[%clk 0:01:04.7]} 25... Bg8 {[%clk 0:01:30]} 26. Be3 {[%clk 0:00:43.3]} 26...
Qa5 {[%clk 0:01:22.1]} 27. Qg2 {[%clk 0:00:37.5]} 27... Rf3 {[%clk 0:01:18.3]}
28. Rhe1 {[%clk 0:00:34.3]} 28... Be6 {[%clk 0:01:05.4]} 29. Qh2 {[%clk
0:00:29.3]} 29... Bf5 {[%clk 0:01:01.6]} 30. Qh7 {[%clk 0:00:20.5]} 30... Kf7
{[%clk 0:01:01.4]} 31. Qh1 {[%clk 0:00:16]} 31... c5 {[%clk 0:01:00.8]} 32. Qg2
{[%clk 0:00:10.4]} 32... cxd4 {[%clk 0:00:55.1]} 33. Bxd4 {[%clk 0:00:08.1]}
33... Qa1+ {[%clk 0:00:53.3]} 34. Kc2 {[%clk 0:00:07.9]} 34... e3+ {[%clk
0:00:46.9]} 35. Nd3 {[%clk 0:00:05.7]} 35... Rc8+ {[%clk 0:00:47.2]} 36. Bc3
{[%clk 0:00:04.5]} 36... Rxc3+ {[%clk 0:00:44]} 37. bxc3 {[%clk 0:00:04.7]}
37... Qxc3+ {[%clk 0:00:42.8]} 38. Kb1 {[%clk 0:00:03.3]} 38... Qa1+ {[%clk
0:00:42.6]} 39. Kc2 {[%clk 0:00:03.3]} 39... Rf2+ {[%clk 0:00:43.1]} 0-1

[Event "*** Titled Tuesday Blitz"]
[Site "Chess.com"]
[Date "2020.11.10"]
[Round "2"]
[White "Bodnar_Mykola"]
[Black "picturesquecheck"]
[Result "1-0"]
[WhiteElo "2388"]
[BlackElo "2101"]
[TimeControl "180+1"]
[EndTime "10:19:57 PST"]
[Termination "Bodnar_Mykola won by resignation"]

1. e4 {[%clk 0:03:00.9]} 1... c5 {[%clk 0:02:59.4]} 2. Nf3 {[%clk 0:03:00.8]}
2... Nc6 {[%clk 0:02:58.3]} 3. d4 {[%clk 0:03:01.2]} 3... cxd4 {[%clk
0:02:59.2]} 4. Nxd4 {[%clk 0:03:02.1]} 4... Nf6 {[%clk 0:02:59.8]} 5. Nc3 {[%clk
0:03:02]} 5... d6 {[%clk 0:03:00.3]} 6. Bc4 {[%clk 0:03:00]} 6... Qb6 {[%clk
0:02:59.3]} 7. Nb3 {[%clk 0:02:58]} 7... e6 {[%clk 0:02:58.6]} 8. O-O {[%clk
0:02:57.2]} 8... a6 {[%clk 0:02:57.5]} 9. Be3 {[%clk 0:02:55.8]} 9... Qc7 {[%clk
0:02:55.9]} 10. a4 {[%clk 0:02:51.5]} 10... Be7 {[%clk 0:02:55.7]} 11. f4 {[%clk
0:02:50.6]} 11... O-O {[%clk 0:02:55.6]} 12. Be2 {[%clk 0:02:50.4]} 12... b6
{[%clk 0:02:50.3]} 13. Qe1 {[%clk 0:02:45.8]} 13... Bb7 {[%clk 0:02:49.1]} 14.
f5 {[%clk 0:02:46.3]} 14... Ne5 {[%clk 0:02:45.4]} 15. fxe6 {[%clk 0:02:37.2]}
15... fxe6 {[%clk 0:02:44.8]} 16. Nd4 {[%clk 0:02:37.6]} 16... Qd7 {[%clk
0:02:34]} 17. Bd3 {[%clk 0:02:14.2]} 17... Rac8 {[%clk 0:02:18.1]} 18. Qe2
{[%clk 0:02:08.6]} 18... Nxd3 {[%clk 0:02:17.6]} 19. cxd3 {[%clk 0:02:09]} 19...
d5 {[%clk 0:01:52.3]} 20. e5 {[%clk 0:02:07.6]} 20... Ne8 {[%clk 0:01:51.6]} 21.
Qg4 {[%clk 0:02:07.4]} 21... Nc7 {[%clk 0:01:47.2]} 22. Kh1 {[%clk 0:02:01.8]}
22... Bc5 {[%clk 0:01:39]} 23. Nce2 {[%clk 0:01:54]} 23... a5 {[%clk 0:01:32.5]}
24. Nf4 {[%clk 0:01:49.2]} 24... Rce8 {[%clk 0:01:28.2]} 25. Nh5 {[%clk
0:01:47.4]} 25... Kh8 {[%clk 0:01:26.3]} 26. h3 {[%clk 0:01:23]} 26... Ba6
{[%clk 0:01:24.5]} 27. Rf3 {[%clk 0:01:04.6]} 27... Bxd3 {[%clk 0:01:16.4]} 28.
Bh6 {[%clk 0:01:04.5]} 28... gxh6 {[%clk 0:01:08.7]} 29. Rxd3 {[%clk 0:01:03.5]}
29... Rg8 {[%clk 0:00:56.1]} 30. Qf4 {[%clk 0:01:03.5]} 30... Ref8 {[%clk
0:00:41.5]} 31. Qxh6 {[%clk 0:00:59.6]} 31... Rg6 {[%clk 0:00:36.8]} 32. Qd2
{[%clk 0:00:52.2]} 32... Qf7 {[%clk 0:00:34.3]} 33. Nf6 {[%clk 0:00:50.6]} 33...
Qg7 {[%clk 0:00:33]} 34. Rf1 {[%clk 0:00:48.3]} 34... Rg3 {[%clk 0:00:22.3]} 35.
Rff3 {[%clk 0:00:37]} 35... Rxf3 {[%clk 0:00:20.4]} 36. Rxf3 {[%clk 0:00:37.9]}
36... Bxd4 {[%clk 0:00:19.8]} 37. Qxd4 {[%clk 0:00:37.6]} 37... Ne8 {[%clk
0:00:20.7]} 38. Qxb6 {[%clk 0:00:34.2]} 38... Nxf6 {[%clk 0:00:19.8]} 39. exf6
{[%clk 0:00:35.1]} 39... Qg6 {[%clk 0:00:16.9]} 40. Qxe6 {[%clk 0:00:34.2]}
40... h6 {[%clk 0:00:16.2]} 41. Qxd5 {[%clk 0:00:33.5]} 41... Rxf6 {[%clk
0:00:15.6]} 42. Qd8+ {[%clk 0:00:33.5]} 42... Kg7 {[%clk 0:00:14]} 43. Qxf6+
{[%clk 0:00:34.1]} 43... Qxf6 {[%clk 0:00:14.5]} 44. Rxf6 {[%clk 0:00:35]} 44...
Kxf6 {[%clk 0:00:15.4]} 45. g4 {[%clk 0:00:35.9]} 1-0

[Event "*** Titled Tuesday Blitz"]
[Site "Chess.com"]
[Date "2020.11.10"]
[Round "2"]
[White "dennisodessa"]
[Black "tylityli"]
[Result "1-0"]
[WhiteElo "2459"]
[BlackElo "2254"]
[TimeControl "180+1"]
[EndTime "10:20:03 PST"]
[Termination "dennisodessa won on time"]

1. d4 {[%clk 0:03:00.3]} 1... Nf6 {[%clk 0:02:59.3]} 2. c4 {[%clk 0:02:59.6]}
2... e6 {[%clk 0:02:59.1]} 3. Nc3 {[%clk 0:02:58.5]} 3... Bb4 {[%clk 0:02:58.4]}
4. Qc2 {[%clk 0:02:59.2]} 4... O-O {[%clk 0:02:57.2]} 5. a3 {[%clk 0:02:59.8]}
5... Bxc3+ {[%clk 0:02:55.5]} 6. Qxc3 {[%clk 0:03:00.7]} 6... d5 {[%clk
0:02:51]} 7. Bg5 {[%clk 0:02:59.7]} 7... h6 {[%clk 0:02:46.5]} 8. Bh4 {[%clk
0:02:51.3]} 8... g5 {[%clk 0:02:45.8]} 9. Bg3 {[%clk 0:02:50.7]} 9... Ne4 {[%clk
0:02:45]} 10. Qc2 {[%clk 0:02:50.1]} 10... f5 {[%clk 0:02:36.9]} 11. Be5 {[%clk
0:02:48.9]} 11... Nc6 {[%clk 0:02:33.2]} 12. f3 {[%clk 0:02:41.8]} 12... Nxe5
{[%clk 0:02:26.6]} 13. dxe5 {[%clk 0:02:40.5]} 13... Nc5 {[%clk 0:02:25.1]} 14.
Rd1 {[%clk 0:02:38.8]} 14... c6 {[%clk 0:02:24]} 15. cxd5 {[%clk 0:02:36.4]}
15... Na6 {[%clk 0:02:13.5]} 16. d6 {[%clk 0:02:20.8]} 16... Bd7 {[%clk
0:02:11.5]} 17. e3 {[%clk 0:02:18]} 17... Qa5+ {[%clk 0:02:09.8]} 18. Qc3 {[%clk
0:02:17.9]} 18... Qxc3+ {[%clk 0:02:05.5]} 19. bxc3 {[%clk 0:02:18.5]} 19... Nc5
{[%clk 0:02:04.4]} 20. Ne2 {[%clk 0:02:13.3]} 20... b5 {[%clk 0:02:01.3]} 21.
Nd4 {[%clk 0:02:11]} 21... Kf7 {[%clk 0:01:59.3]} 22. Bd3 {[%clk 0:02:04.7]}
22... a5 {[%clk 0:01:57.2]} 23. O-O {[%clk 0:02:02.4]} 23... Rfb8 {[%clk
0:01:52.4]} 24. Be2 {[%clk 0:01:56.3]} 24... Na4 {[%clk 0:01:50.3]} 25. Rc1
{[%clk 0:01:54.7]} 25... c5 {[%clk 0:01:43.7]} 26. Nb3 {[%clk 0:01:53.4]} 26...
c4 {[%clk 0:01:34.6]} 27. Nd4 {[%clk 0:01:53.1]} 27... Nc5 {[%clk 0:01:33.1]}
28. f4 {[%clk 0:01:53.2]} 28... g4 {[%clk 0:01:24]} 29. h3 {[%clk 0:01:48.9]}
29... h5 {[%clk 0:01:23.1]} 30. Kh2 {[%clk 0:01:43.4]} 30... a4 {[%clk
0:01:19.7]} 31. Rb1 {[%clk 0:01:23.8]} 31... Nb3 {[%clk 0:01:09.4]} 32. Rfd1
{[%clk 0:01:21.2]} 32... Rh8 {[%clk 0:00:16.7]} 33. Kg3 {[%clk 0:01:18.7]} 33...
h4+ {[%clk 0:00:16.4]} 34. Kf2 {[%clk 0:01:17.5]} 34... g3+ {[%clk 0:00:15.2]}
35. Kf1 {[%clk 0:01:17.2]} 35... Rhc8 {[%clk 0:00:14.3]} 36. Bf3 {[%clk
0:01:16.8]} 36... Ra6 {[%clk 0:00:13.7]} 37. e4 {[%clk 0:01:16.5]} 37... Kg6
{[%clk 0:00:10.2]} 38. exf5+ {[%clk 0:01:16.2]} 38... exf5 {[%clk 0:00:08.1]}
39. e6 {[%clk 0:01:16.8]} 39... Rxd6 {[%clk 0:00:07.6]} 40. exd7 {[%clk
0:01:16.8]} 40... Rxd7 {[%clk 0:00:07.2]} 41. Kg1 {[%clk 0:01:15.7]} 41... Rcd8
{[%clk 0:00:06.9]} 42. Re1 {[%clk 0:01:11.9]} 42... Nxd4 {[%clk 0:00:06.4]} 43.
cxd4 {[%clk 0:01:12.8]} 43... Rxd4 {[%clk 0:00:06.4]} 44. Rxb5 {[%clk
0:01:12.7]} 44... Rxf4 {[%clk 0:00:04]} 45. Rb6+ {[%clk 0:01:09.3]} 45... Kg7
{[%clk 0:00:03.3]} 46. Rc6 {[%clk 0:01:08.5]} 46... Rb8 {[%clk 0:00:02]} 47. Rc1
{[%clk 0:01:08.4]} 47... Rb3 {[%clk 0:00:01.3]} 48. Kf1 {[%clk 0:01:08.4]} 48...
Rxa3 {[%clk 0:00:01.1]} 49. Rc7+ {[%clk 0:01:08]} 1-0